[Event "Polofinale MCR junioru 2023"]
[Site "Czech Republic"]
[Date "2023.11.15"]
[Round "6.13"]
[White "Janous, Marek"]
[Black "Pelc, Adam"]
[Result "1-0"]
[TimeControl "90 min per 40 moves + 15 min + 30 sec / move from move 1"]
[WhiteFideId "23709650"]
[BlackFideId "23723033"]
[WhiteElo "2098"]
[BlackElo "1856"]

1. e4 {[%clk 01:30:39]} {[%emt 00:00:21]} c6 {[%clk 01:30:25]} {[%emt
00:00:36]} 2. d4 {[%clk 01:30:21]} {[%emt 00:00:47]} d5 {[%clk 01:30:15]}
{[%emt 00:00:40]} 3. e5 {[%clk 01:30:44]} {[%emt 00:00:07]} c5 {[%clk
01:29:32]} {[%emt 00:01:13]} 4. dxc5 {[%clk 01:31:08]} {[%emt 00:00:06]} Nc6
{[%clk 01:29:23]} {[%emt 00:00:39]} 5. f4 {[%clk 01:31:32]} {[%emt 00:00:06]}
e6 {[%clk 01:29:15]} {[%emt 00:00:39]} 6. Be3 {[%clk 01:31:41]} {[%emt
00:00:20]} d4 {[%clk 01:24:41]} {[%emt 00:05:04]} 7. Bf2 {[%clk 01:32:05]}
{[%emt 00:00:05]} Bxc5 {[%clk 01:24:27]} {[%emt 00:00:45]} 8. Nf3 {[%clk
01:31:30]} {[%emt 00:01:05]} Nge7 {[%clk 01:15:23]} {[%emt 00:09:34]} 9. Bd3
{[%clk 01:29:37]} {[%emt 00:02:23]} Nd5 {[%clk 01:13:39]} {[%emt 00:02:15]} 10.
O-O {[%clk 01:22:11]} {[%emt 00:07:54]} Nxf4 {[%clk 00:58:57]} {[%emt
00:15:13]} 11. Be4 {[%clk 01:15:15]} {[%emt 00:07:26]} O-O {[%clk 00:56:18]}
{[%emt 00:03:10]} 12. Nbd2 {[%clk 01:13:57]} {[%emt 00:01:47]} Ng6 {[%clk
00:33:58]} {[%emt 00:22:50]} 13. Nb3 {[%clk 01:12:26]} {[%emt 00:02:01]} Bb6
{[%clk 00:33:15]} {[%emt 00:01:13]} 14. Nbxd4 {[%clk 01:07:20]} {[%emt
00:05:37]} Nxd4 {[%clk 00:32:03]} {[%emt 00:01:42]} 15. Nxd4 {[%clk 01:07:02]}
{[%emt 00:00:47]} Qg5 {[%clk 00:29:28]} {[%emt 00:03:04]} 16. Nf3 {[%clk
01:00:58]} {[%emt 00:06:35]} Bxf2+ {[%clk 00:26:18]} {[%emt 00:03:40]} 17. Rxf2
{[%clk 01:01:10]} {[%emt 00:00:17]} Qe3 {[%clk 00:25:50]} {[%emt 00:00:58]} 18.
Qd3 {[%clk 00:57:30]} {[%emt 00:04:10]} Qxd3 {[%clk 00:16:52]} {[%emt
00:09:29]} 19. cxd3 {[%clk 00:57:41]} {[%emt 00:00:19]} Rb8 {[%clk 00:16:12]}
{[%emt 00:01:11]} 20. Rc2 {[%clk 00:56:20]} {[%emt 00:01:50]} Bd7 {[%clk
00:12:55]} {[%emt 00:03:48]} 21. Kf2 {[%clk 00:52:59]} {[%emt 00:03:50]} Rfc8
{[%clk 00:11:56]} {[%emt 00:01:29]} 22. Rac1 {[%clk 00:53:14]} {[%emt
00:00:15]} Rxc2+ {[%clk 00:11:50]} {[%emt 00:00:36]} 23. Rxc2 {[%clk 00:53:37]}
{[%emt 00:00:08]} Rc8 {[%clk 00:12:16]} {[%emt 00:00:03]} 24. Rc3 {[%clk
00:51:10]} {[%emt 00:02:56]} Rxc3 {[%clk 00:11:06]} {[%emt 00:01:41]} 25. bxc3
{[%clk 00:51:37]} {[%emt 00:00:03]} b6 {[%clk 00:11:17]} {[%emt 00:00:19]} 26.
Ke3 {[%clk 00:51:30]} {[%emt 00:00:37]} Kf8 {[%clk 00:11:30]} {[%emt 00:00:17]}
27. d4 {[%clk 00:50:57]} {[%emt 00:01:03]} b5 {[%clk 00:11:02]} {[%emt
00:00:58]} 28. d5 {[%clk 00:43:06]} {[%emt 00:08:21]} exd5 {[%clk 00:10:50]}
{[%emt 00:00:41]} 29. Bxd5 {[%clk 00:43:31]} {[%emt 00:00:05]} Ke7 {[%clk
00:06:21]} {[%emt 00:04:59]} 30. g3 {[%clk 00:42:57]} {[%emt 00:01:05]} Bg4
{[%clk 00:05:02]} {[%emt 00:01:50]} 31. Kd4 {[%clk 00:43:00]} {[%emt 00:00:25]}
h6 {[%clk 00:03:12]} {[%emt 00:02:21]} 32. a3 {[%clk 00:43:03]} {[%emt
00:00:27]} Be6 {[%clk 00:02:40]} {[%emt 00:01:02]} 33. Kc5 {[%clk 00:41:31]}
{[%emt 00:02:02]} Bxd5 {[%clk 00:01:55]} {[%emt 00:01:15]} 34. Kxd5 {[%clk
00:41:50]} {[%emt 00:00:10]} Kd7 {[%clk 00:02:08]} {[%emt 00:00:18]} 35. Kc5
{[%clk 00:42:08]} {[%emt 00:00:12]} Ne7 {[%clk 00:01:49]} {[%emt 00:00:49]} 36.
Kxb5 {[%clk 00:41:42]} {[%emt 00:00:57]} Nd5 {[%clk 00:02:08]} {[%emt
00:00:10]} 37. Kc4 {[%clk 00:40:30]} {[%emt 00:01:40]} Ne3+ {[%clk 00:01:44]}
{[%emt 00:00:56]} 38. Kc5 {[%clk 00:40:08]} {[%emt 00:00:50]} Ke6 {[%clk
00:01:21]} {[%emt 00:00:54]} 39. a4 {[%clk 00:38:58]} {[%emt 00:01:41]} g5
{[%clk 00:01:37]} {[%emt 00:00:15]} 40. Kd4 {[%clk 00:36:32]} {[%emt 00:02:55]}
Nd5 {[%clk 00:00:37]} {[%emt 00:01:30]} 41. c4 {[%clk 00:32:22]} {[%emt
00:04:39]} Nb6 {[%clk 00:15:18]} {[%emt 00:01:19]} 42. a5 {[%clk 00:48:17]}
{[%emt 00:00:36]} g4 {[%clk 00:14:54]} {[%emt 00:00:54]} 43. axb6 {[%clk
00:48:01]} {[%emt 00:00:47]} gxf3 {[%clk 00:15:09]} {[%emt 00:00:14]} 44. b7
{[%clk 00:48:26]} {[%emt 00:00:04]} f2 {[%clk 00:15:21]} {[%emt 00:00:19]} 45.
b8=Q {[%clk 00:48:50]} {[%emt 00:00:06]} f1=Q {[%clk 00:15:43]} {[%emt
00:00:07]} 46. Qd6+ {[%clk 00:49:16]} {[%emt 00:00:05]} Kf5 {[%clk 00:15:30]}
{[%emt 00:00:12]} 47. Qf6+ {[%clk 00:49:42]} {[%emt 00:00:05]} 1-0

[Event "Polofinale MCR junioru 2023"]
[Site "Czech Republic"]
[Date "2023.11.15"]
[Round "6.14"]
[White "Bezdek, Tomas"]
[Black "Pecka, Jan"]
[Result "1/2-1/2"]
[TimeControl "90 min per 40 moves + 15 min + 30 sec / move from move 1"]
[WhiteFideId "23733551"]
[BlackFideId "23712520"]
[WhiteElo "2078"]
[BlackElo "1999"]

1. e4 {[%clk 01:30:47]} {[%emt 00:00:12]} c5 {[%clk 01:29:41]} {[%emt
00:01:19]} 2. Nf3 {[%clk 01:31:09]} {[%emt 00:00:07]} Nc6 {[%clk 01:30:02]}
{[%emt 00:00:10]} 3. d4 {[%clk 01:31:33]} {[%emt 00:00:07]} cxd4 {[%clk
01:30:12]} {[%emt 00:00:20]} 4. Nxd4 {[%clk 01:31:53]} {[%emt 00:00:10]} g6
{[%clk 01:30:31]} {[%emt 00:00:11]} 5. Nc3 {[%clk 01:26:40]} {[%emt 00:05:41]}
Bg7 {[%clk 01:28:25]} {[%emt 00:02:37]} 6. Be3 {[%clk 01:27:01]} {[%emt
00:00:09]} Nf6 {[%clk 01:28:43]} {[%emt 00:00:12]} 7. Be2 {[%clk 01:26:53]}
{[%emt 00:00:38]} O-O {[%clk 01:29:02]} {[%emt 00:00:11]} 8. O-O {[%clk
01:27:17]} {[%emt 00:00:06]} d6 {[%clk 01:27:44]} {[%emt 00:01:49]} 9. f3
{[%clk 01:26:32]} {[%emt 00:01:14]} Bd7 {[%clk 01:27:06]} {[%emt 00:01:09]} 10.
Qd2 {[%clk 01:19:33]} {[%emt 00:07:28]} Rc8 {[%clk 01:23:59]} {[%emt 00:03:37]}
11. Nxc6 {[%clk 01:14:30]} {[%emt 00:05:34]} bxc6 {[%clk 01:23:06]} {[%emt
00:01:23]} 12. Rfd1 {[%clk 01:09:43]} {[%emt 00:05:16]} Qc7 {[%clk 01:11:22]}
{[%emt 00:12:15]} 13. Bc4 {[%clk 01:04:43]} {[%emt 00:05:29]} Rfd8 {[%clk
01:09:13]} {[%emt 00:02:40]} 14. Qf2 {[%clk 01:01:53]} {[%emt 00:03:19]} c5
{[%clk 01:07:05]} {[%emt 00:02:38]} 15. Rab1 {[%clk 00:52:16]} {[%emt
00:10:08]} Bc6 {[%clk 01:02:42]} {[%emt 00:04:53]} 16. e5 {[%clk 00:44:20]}
{[%emt 00:08:26]} Ne8 {[%clk 00:55:09]} {[%emt 00:08:03]} 17. exd6 {[%clk
00:39:30]} {[%emt 00:05:19]} Nxd6 {[%clk 00:54:54]} {[%emt 00:00:45]} 18. Ba6
{[%clk 00:34:42]} {[%emt 00:05:19]} Bb7 {[%clk 00:53:44]} {[%emt 00:01:39]} 19.
Bxb7 {[%clk 00:33:33]} {[%emt 00:01:40]} Nxb7 {[%clk 00:54:07]} {[%emt
00:00:06]} 20. Rxd8+ {[%clk 00:32:49]} {[%emt 00:01:15]} Rxd8 {[%clk 00:54:25]}
{[%emt 00:00:12]} 21. Ne4 {[%clk 00:32:56]} {[%emt 00:00:22]} Bd4 {[%clk
00:51:51]} {[%emt 00:03:04]} 22. c3 {[%clk 00:25:49]} {[%emt 00:07:37]} Bxe3
{[%clk 00:51:20]} {[%emt 00:01:02]} 23. Qxe3 {[%clk 00:26:17]} {[%emt
00:00:02]} Qd7 {[%clk 00:42:44]} {[%emt 00:09:06]} 24. Nxc5 {[%clk 00:19:11]}
{[%emt 00:07:35]} Nxc5 {[%clk 00:42:56]} {[%emt 00:00:18]} 25. Qxc5 {[%clk
00:19:34]} {[%emt 00:00:08]} Qd3 {[%clk 00:42:37]} {[%emt 00:00:48]} 26. Re1
{[%clk 00:18:56]} {[%emt 00:01:07]} Qc2 {[%clk 00:40:50]} {[%emt 00:02:18]} 27.
Qxe7 {[%clk 00:15:31]} {[%emt 00:03:53]} Rd2 {[%clk 00:40:36]} {[%emt
00:00:46]} 28. Qe8+ {[%clk 00:10:44]} {[%emt 00:05:17]} Kg7 {[%clk 00:39:36]}
{[%emt 00:01:30]} 29. Qe5+ {[%clk 00:08:20]} {[%emt 00:02:52]} Kg8 {[%clk
00:39:09]} {[%emt 00:00:58]} 30. Qe8+ {[%clk 00:07:06]} {[%emt 00:01:45]}
1/2-1/2

[Event "Polofinale MCR junioru 2023"]
[Site "Czech Republic"]
[Date "2023.11.15"]
[Round "6.15"]
[White "Nespurek, Jakub"]
[Black "Kubiczek, Michal"]
[Result "0-1"]
[TimeControl "90 min per 40 moves + 15 min + 30 sec / move from move 1"]
[WhiteFideId "391816"]
[BlackFideId "23706996"]
[WhiteElo "1680"]
[BlackElo "2068"]

1. e4 {[%clk 01:30:55]} {[%emt 00:00:04]} e5 {[%clk 01:30:06]} {[%emt
00:00:55]} 2. Nc3 {[%clk 01:30:48]} {[%emt 00:00:36]} Nf6 {[%clk 01:30:19]}
{[%emt 00:00:17]} 3. f4 {[%clk 01:29:32]} {[%emt 00:01:46]} d5 {[%clk
01:29:43]} {[%emt 00:01:06]} 4. fxe5 {[%clk 01:26:58]} {[%emt 00:03:04]} Nxe4
{[%clk 01:29:36]} {[%emt 00:00:36]} 5. Nf3 {[%clk 01:25:28]} {[%emt 00:02:00]}
Be7 {[%clk 01:27:26]} {[%emt 00:02:40]} 6. d4 {[%clk 01:12:06]} {[%emt
00:13:53]} c5 {[%clk 01:12:03]} {[%emt 00:15:53]} 7. Bd3 {[%clk 01:08:57]}
{[%emt 00:03:39]} Nxc3 {[%clk 01:05:18]} {[%emt 00:07:15]} 8. bxc3 {[%clk
01:09:14]} {[%emt 00:00:13]} c4 {[%clk 01:05:20]} {[%emt 00:00:28]} 9. Be2
{[%clk 01:09:05]} {[%emt 00:00:39]} O-O {[%clk 01:03:03]} {[%emt 00:02:46]} 10.
O-O {[%clk 01:07:16]} {[%emt 00:02:20]} Qa5 {[%clk 00:56:22]} {[%emt 00:07:10]}
11. Qe1 {[%clk 00:59:00]} {[%emt 00:08:46]} Bf5 {[%emt 00:07:41]} 12. Bg5
{[%clk 00:45:46]} {[%emt 00:08:39]} Nc6 {[%clk 00:48:33]} {[%emt 00:06:14]} 13.
Qd2 {[%clk 00:44:05]} {[%emt 00:02:12]} Qc7 {[%clk 00:41:46]} {[%emt 00:07:16]}
14. Rab1 {[%clk 00:34:03]} {[%emt 00:10:32]} a6 {[%clk 00:39:01]} {[%emt
00:03:15]} 15. Bf4 {[%clk 00:31:04]} {[%emt 00:03:29]} Qd7 {[%clk 00:38:02]}
{[%emt 00:01:28]} 16. Ng5 {[%clk 00:24:54]} {[%emt 00:06:40]} Rae8 {[%clk
00:35:50]} {[%emt 00:02:43]} 17. Bh5 {[%clk 00:19:53]} {[%emt 00:05:31]} g6
{[%clk 00:24:27]} {[%emt 00:11:54]} 18. Bf3 {[%clk 00:19:04]} {[%emt 00:01:18]}
f6 {[%clk 00:23:55]} {[%emt 00:01:02]} 19. e6 {[%clk 00:15:34]} {[%emt
00:04:00]} Qc8 {[%clk 00:22:14]} {[%emt 00:02:10]} 20. Nf7 {[%clk 00:14:00]}
{[%emt 00:02:05]} Bxe6 {[%clk 00:21:30]} {[%emt 00:01:13]} 21. Nh6+ {[%clk
00:14:13]} {[%emt 00:00:17]} Kh8 {[%clk 00:19:59]} {[%emt 00:02:01]} 22. Rfe1
{[%clk 00:12:47]} {[%emt 00:01:56]} g5 {[%clk 00:16:10]} {[%emt 00:04:20]} 23.
Bg3 {[%clk 00:11:34]} {[%emt 00:01:44]} Kg7 {[%clk 00:16:17]} {[%emt 00:00:23]}
24. Rxe6 {[%clk 00:08:26]} {[%emt 00:03:37]} Qxe6 {[%clk 00:16:44]} {[%emt
00:00:03]} 25. Bg4 {[%clk 00:07:43]} {[%emt 00:01:13]} f5 {[%clk 00:16:32]}
{[%emt 00:00:43]} 26. Nxf5+ {[%clk 00:06:21]} {[%emt 00:01:51]} Rxf5 {[%clk
00:16:49]} {[%emt 00:00:13]} 27. Rxb7 {[%clk 00:05:45]} {[%emt 00:01:06]} Qf6
{[%clk 00:15:42]} {[%emt 00:01:37]} 28. Bxf5 {[%clk 00:05:18]} {[%emt
00:00:57]} Qxf5 {[%clk 00:15:50]} {[%emt 00:00:22]} 29. Qe2 {[%clk 00:04:22]}
{[%emt 00:01:26]} Kg6 {[%clk 00:11:32]} {[%emt 00:04:48]} 30. Rc7 {[%clk
00:03:03]} {[%emt 00:01:49]} Qf6 {[%clk 00:10:58]} {[%emt 00:01:03]} 31. h4
{[%clk 00:02:25]} {[%emt 00:01:09]} h6 {[%clk 00:07:46]} {[%emt 00:03:43]} 32.
hxg5 {[%clk 00:01:38]} {[%emt 00:01:16]} hxg5 {[%clk 00:08:02]} {[%emt
00:00:13]} 33. Qg4 {[%clk 00:01:24]} {[%emt 00:00:45]} Rf8 {[%clk 00:07:04]}
{[%emt 00:01:29]} 34. Be5 {[%clk 00:00:43]} {[%emt 00:01:10]} Nxe5 {[%clk
00:07:11]} {[%emt 00:00:23]} 35. dxe5 {[%clk 00:01:01]} {[%emt 00:00:12]} Qb6+
{[%clk 00:07:29]} {[%emt 00:00:12]} 0-1

[Event "Polofinale MCR junioru 2023"]
[Site "Czech Republic"]
[Date "2023.11.15"]
[Round "6.16"]
[White "Mrazek, Adam"]
[Black "Trojan, Matyas"]
[Result "0-1"]
[TimeControl "90 min per 40 moves + 15 min + 30 sec / move from move 1"]
[WhiteFideId "23725010"]
[BlackFideId "23710764"]
[WhiteElo "1643"]
[BlackElo "1957"]

1. c4 {[%clk 01:30:50]} {[%emt 00:00:09]} e6 {[%clk 01:30:49]} {[%emt
00:00:12]} 2. g3 {[%clk 01:31:08]} {[%emt 00:00:12]} Nf6 {[%clk 01:30:56]}
{[%emt 00:00:23]} 3. Bg2 {[%clk 01:31:18]} {[%emt 00:00:20]} d5 {[%clk
01:30:59]} {[%emt 00:00:26]} 4. Nf3 {[%clk 01:31:24]} {[%emt 00:00:24]} dxc4
{[%clk 01:31:18]} {[%emt 00:00:12]} 5. Qa4+ {[%clk 01:31:30]} {[%emt 00:00:23]}
Nbd7 {[%clk 01:31:41]} {[%emt 00:00:07]} 6. Qxc4 {[%clk 01:31:22]} {[%emt
00:00:39]} a6 {[%clk 01:32:04]} {[%emt 00:00:07]} 7. O-O {[%clk 01:29:55]}
{[%emt 00:01:56]} c5 {[%clk 01:31:08]} {[%emt 00:01:26]} 8. Qc2 {[%clk
01:28:35]} {[%emt 00:01:51]} b6 {[%clk 01:27:05]} {[%emt 00:04:34]} 9. b3
{[%clk 01:16:19]} {[%emt 00:12:47]} Bb7 {[%clk 01:26:37]} {[%emt 00:00:57]} 10.
Bb2 {[%clk 01:16:14]} {[%emt 00:00:35]} Rc8 {[%clk 01:25:13]} {[%emt 00:01:53]}
11. d3 {[%clk 01:13:47]} {[%emt 00:02:57]} Bd6 {[%clk 01:20:46]} {[%emt
00:04:57]} 12. Nbd2 {[%clk 01:11:53]} {[%emt 00:02:24]} O-O {[%clk 01:19:59]}
{[%emt 00:01:17]} 13. Nc4 {[%clk 01:03:30]} {[%emt 00:08:54]} Bb8 {[%clk
01:19:54]} {[%emt 00:00:35]} 14. Rad1 {[%clk 01:00:38]} {[%emt 00:03:23]} b5
{[%clk 01:13:01]} {[%emt 00:07:22]} 15. Nce5 {[%clk 00:39:56]} {[%emt
00:21:12]} Nd5 {[%clk 01:11:27]} {[%emt 00:02:04]} 16. a3 {[%clk 00:34:29]}
{[%emt 00:05:58]} Nxe5 {[%clk 01:01:47]} {[%emt 00:10:10]} 17. Nxe5 {[%clk
00:31:02]} {[%emt 00:03:56]} f6 {[%clk 00:58:54]} {[%emt 00:03:22]} 18. Nf3
{[%clk 00:29:18]} {[%emt 00:02:15]} e5 {[%clk 00:55:22]} {[%emt 00:04:03]} 19.
Nd2 {[%clk 00:28:07]} {[%emt 00:01:41]} Qb6 {[%clk 00:54:39]} {[%emt 00:01:12]}
20. Rc1 {[%clk 00:25:48]} {[%emt 00:02:49]} Ba7 {[%clk 00:45:17]} {[%emt
00:09:52]} 21. Ne4 {[%clk 00:11:41]} {[%emt 00:14:37]} f5 {[%clk 00:40:08]}
{[%emt 00:05:38]} 22. Nc3 {[%clk 00:08:18]} {[%emt 00:03:54]} Qd6 {[%clk
00:39:29]} {[%emt 00:01:09]} 23. Nxd5 {[%clk 00:07:37]} {[%emt 00:01:11]} Bxd5
{[%clk 00:39:36]} {[%emt 00:00:23]} 24. Bxd5+ {[%clk 00:07:59]} {[%emt
00:00:08]} Qxd5 {[%clk 00:39:59]} {[%emt 00:00:06]} 25. Qc3 {[%clk 00:07:28]}
{[%emt 00:01:01]} Rce8 {[%clk 00:39:24]} {[%emt 00:01:04]} 26. a4 {[%clk
00:06:25]} {[%emt 00:01:34]} f4 {[%clk 00:38:46]} {[%emt 00:01:08]} 27. axb5
{[%clk 00:05:28]} {[%emt 00:01:27]} axb5 {[%clk 00:38:10]} {[%emt 00:01:06]} 28.
Ra1 {[%clk 00:03:10]} {[%emt 00:02:48]} Bb6 {[%clk 00:36:34]} {[%emt 00:02:06]}
29. Bc1 {[%clk 00:00:41]} {[%emt 00:02:59]} Rf6 {[%clk 00:35:21]} {[%emt
00:01:42]} 30. e4 {[%clk 00:00:37]} {[%emt 00:00:35]} Qd7 {[%clk 00:35:08]}
{[%emt 00:00:43]} 31. Rd1 {[%clk 00:00:34]} {[%emt 00:00:34]} c4 {[%clk
00:34:10]} {[%emt 00:01:29]} 32. Ra2 {[%clk 00:00:37]} {[%emt 00:00:26]} Qg4
{[%clk 00:33:29]} {[%emt 00:01:10]} 33. Qe1 {[%clk 00:00:36]} {[%emt 00:00:32]}
fxg3 {[%clk 00:33:28]} {[%emt 00:00:31]} 34. hxg3 {[%clk 00:00:45]} {[%emt
00:00:20]} Qxg3+ {[%clk 00:33:25]} {[%emt 00:00:33]} 35. Kf1 {[%clk 00:00:48]}
{[%emt 00:00:28]} Qh3+ {[%clk 00:33:36]} {[%emt 00:00:18]} 36. Ke2 {[%clk
00:01:08]} {[%emt 00:00:09]} Rxf2+ {[%clk 00:33:27]} {[%emt 00:00:40]} 37. Qxf2
{[%clk 00:00:58]} {[%emt 00:00:40]} Bxf2 {[%clk 00:33:46]} {[%emt 00:00:11]} 38.
Kxf2 {[%clk 00:00:51]} {[%emt 00:00:37]} Qh2+ {[%clk 00:34:04]} {[%emt
00:00:11]} 0-1

[Event "Polofinale MCR junioru 2023"]
[Site "Czech Republic"]
[Date "2023.11.15"]
[Round "6.17"]
[White "Fizer, Marek"]
[Black "Vylicil, Adam"]
[Result "1/2-1/2"]
[TimeControl "90 min per 40 moves + 15 min + 30 sec / move from move 1"]
[WhiteFideId "391980"]
[BlackFideId "23717556"]
[WhiteElo "2162"]
[BlackElo "1896"]

1. e4 {[%clk 01:30:58]} {[%emt 00:00:01]} e6 {[%clk 01:30:56]} {[%emt
00:00:04]} 2. d4 {[%clk 01:31:22]} {[%emt 00:00:06]} d5 {[%clk 01:31:23]}
{[%emt 00:00:04]} 3. Nc3 {[%clk 01:31:47]} {[%emt 00:00:05]} Bb4 {[%clk
01:31:46]} {[%emt 00:00:07]} 4. e5 {[%clk 01:32:02]} {[%emt 00:00:14]} b6
{[%clk 01:32:13]} {[%emt 00:00:04]} 5. a3 {[%clk 01:31:55]} {[%emt 00:00:37]}
Bf8 {[%clk 01:32:37]} {[%emt 00:00:05]} 6. f4 {[%clk 01:31:15]} {[%emt
00:01:10]} Ne7 {[%clk 01:32:30]} {[%emt 00:00:37]} 7. Be3 {[%clk 01:30:13]}
{[%emt 00:01:32]} Ba6 {[%clk 01:32:36]} {[%emt 00:00:25]} 8. Bxa6 {[%clk
01:28:34]} {[%emt 00:02:09]} Nxa6 {[%clk 01:33:00]} {[%emt 00:00:07]} 9. Nf3
{[%clk 01:25:53]} {[%emt 00:03:10]} Qd7 {[%clk 01:24:46]} {[%emt 00:08:44]} 10.
Qe2 {[%clk 01:21:48]} {[%emt 00:04:35]} Nb8 {[%clk 01:23:02]} {[%emt 00:02:15]}
11. Bf2 {[%clk 01:20:33]} {[%emt 00:01:43]} Ng6 {[%clk 01:12:09]} {[%emt
00:11:24]} 12. Qd2 {[%clk 01:08:50]} {[%emt 00:12:13]} Be7 {[%clk 00:58:26]}
{[%emt 00:14:12]} 13. Ne2 {[%clk 01:04:42]} {[%emt 00:04:38]} Nc6 {[%clk
00:52:25]} {[%emt 00:06:32]} 14. O-O {[%clk 01:03:20]} {[%emt 00:01:52]} Na5
{[%clk 00:46:29]} {[%emt 00:06:26]} 15. b3 {[%clk 00:45:59]} {[%emt 00:17:51]}
f5 {[%clk 00:42:27]} {[%emt 00:04:32]} 16. exf6 {[%clk 00:44:32]} {[%emt
00:01:57]} Bxf6 {[%clk 00:42:51]} {[%emt 00:00:05]} 17. Ne5 {[%clk 00:43:49]}
{[%emt 00:01:14]} Bxe5 {[%clk 00:41:58]} {[%emt 00:01:23]} 18. fxe5 {[%clk
00:40:34]} {[%emt 00:03:45]} O-O {[%clk 00:42:07]} {[%emt 00:00:21]} 19. h4
{[%clk 00:34:52]} {[%emt 00:06:12]} Rf7 {[%clk 00:39:45]} {[%emt 00:02:52]} 20.
h5 {[%clk 00:34:12]} {[%emt 00:01:09]} Ne7 {[%clk 00:40:04]} {[%emt 00:00:11]}
21. g4 {[%clk 00:34:25]} {[%emt 00:00:17]} Raf8 {[%clk 00:39:32]} {[%emt
00:01:02]} 22. Bh4 {[%clk 00:31:02]} {[%emt 00:03:53]} h6 {[%clk 00:31:38]}
{[%emt 00:08:25]} 23. Rxf7 {[%clk 00:14:51]} {[%emt 00:16:42]} Rxf7 {[%clk
00:31:55]} {[%emt 00:00:13]} 24. Rf1 {[%clk 00:14:57]} {[%emt 00:00:24]} Rxf1+
{[%clk 00:27:05]} {[%emt 00:05:20]} 25. Kxf1 {[%clk 00:15:21]} {[%emt
00:00:05]} Nb7 {[%clk 00:27:23]} {[%emt 00:00:13]} 26. Qd3 {[%clk 00:08:09]}
{[%emt 00:07:42]} c5 {[%clk 00:26:15]} {[%emt 00:01:39]} 27. Nf4 {[%clk
00:03:14]} {[%emt 00:05:25]} cxd4 {[%clk 00:25:20]} {[%emt 00:01:26]} 28. Bf2
{[%clk 00:01:55]} {[%emt 00:01:48]} Nc5 {[%clk 00:24:31]} {[%emt 00:01:19]} 29.
Qxd4 {[%clk 00:01:03]} {[%emt 00:01:22]} Ne4 {[%clk 00:24:12]} {[%emt
00:00:48]} 30. Kg2 {[%clk 00:00:38]} {[%emt 00:00:55]} Nc6 {[%clk 00:22:16]}
{[%emt 00:02:26]} 31. Qa1 {[%clk 00:00:40]} {[%emt 00:00:28]} Qe7 {[%clk
00:14:34]} {[%emt 00:08:12]} 32. Qd1 {[%clk 00:00:42]} {[%emt 00:00:29]} Nxf2
{[%clk 00:10:50]} {[%emt 00:04:14]} 33. Kxf2 {[%clk 00:01:04]} {[%emt
00:00:07]} Qf7 {[%clk 00:11:12]} {[%emt 00:00:08]} 34. Kg3 {[%clk 00:01:11]}
{[%emt 00:00:23]} Nxe5 {[%clk 00:10:56]} {[%emt 00:00:46]} 35. Qe2 {[%clk
00:01:12]} {[%emt 00:00:29]} Qf6 {[%clk 00:11:09]} {[%emt 00:00:18]} 36. Qa6
{[%clk 00:01:11]} {[%emt 00:00:31]} Nf7 {[%clk 00:02:26]} {[%emt 00:09:13]}
1/2-1/2